[Event "18th IRI-chT Super League 2019"]
[Site "Tehran"]
[Date "2019.11.25"]
[Round "5.5"]
[White "Parvin, Zahra"]
[Black "Zahedifar, Anahita"]
[Result "0-1"]
[ECO "B13"]
[WhiteElo "1587"]
[BlackElo "2074"]
[Annotator "NA RC"]
[PlyCount "58"]
[EventDate "2019.11.23"]
[EventType "team-tourn"]
[EventCountry "IRI"]
[SourceTitle "playchess.com"]
[Source "ChessBase"]
[SourceQuality "1"]
[TimeControl "5400+30"]

{[%evp 17,58,16,7,17,19,-77,-76,-124,-124,32767,32767,32767,32767,32767,32767,32767,32767,32767,32767,-609,-683,-738,32767,32767,32767,32767,-776,-1245,-1841,-1411,-2750,-1806,-2850,-5831,-1805,-1641,-798,32767,32767,-1090,-1043,-29994,-29994]} 1. e4 {[%emt 0:05:17]} c6 {[%emt 0:00:00]} 2. d4 {[%emt 0:00:11]} d5 {[%emt 0:00:00]} 3. exd5 {[%emt 0:00:21]} cxd5 {[%emt 0:00:00]} 4. Bd3 {[%emt 0:00:08]} Nf6 {[%emt 0:00:00]} 5. c3 {[%emt 0:01:31]} Bg4 {[%emt 0:00:17]} 6. Qb3 {[%emt 0:02:25]} Qc7 {[%emt 0:01:06]} 7. f3 $146 {[%emt 0:03:45] B13: Caro-Kann: Exchange Variation and Panov-Botvinnik Attack} (7. h3 Bh5 8. g4 Bg6 9. Bxg6 hxg6 10. g5 Nfd7 11. Qxd5 e5 12. Ne2 Nc6 13. Be3 Nb6 14. Qe4 O-O-O {0-1 (44) Tukhaev,A (2542)-Mchedlishvili,M (2608) Ankara 2018}) 7... Bh5 {[%emt 0:02:11]} 8. Bf4 {[%emt 0:06:39]} Qc8 {[%emt 0:08:38]} 9. g4 {[%emt 0:13:09]} Bg6 {[%emt 0:01:04]} 10. Bxg6 {[%emt 0:00:53]} hxg6 {[%emt 0:00:07]} 11. g5 {[%emt 0:00:17] [#]} (11. h4 $11) 11... Nh5 $1 {[%emt 0:05:01]} 12. Bxb8 {[%emt 0:08:11]} Rxb8 {[%emt 0:00:11]} 13. Ne2 {[%emt 0:04:56]} e6 {[%emt 0:03:12]} 14. Qa4+ {[%emt 0:04:55]} b5 {[%emt 0:02:45]} 15. Qxa7 {[%emt 0:01:29]} Bd6 {[%emt 0:00:08]} 16. a4 {[%emt 0:04:31]} b4 {[%emt 0:02:54]} 17. Nd2 {[%emt 0:09:19]} bxc3 {[%emt 0:01:19]} 18. bxc3 {[%emt 0:05:06]} Qc6 {[%emt 0:00:34]} 19. Rb1 {[%emt 0:02:36]} Rxb1+ {[%emt 0:02:38]} 20. Nxb1 {[%emt 0:00:12]} O-O {[%emt 0:00:49]} 21. Qa5 {[%emt 0:02:42]} Rb8 {[%emt 0:01:29]} 22. O-O {[%emt 0:01:05]} Qc4 {[%emt 0:01:50]} 23. Re1 {[%emt 0:03:03]} Qd3 {[%emt 0:00:07]} 24. c4 {[%emt 0:07:17]} Qe3+ {[%emt 0:00:38]} 25. Kg2 {[%emt 0:01:08] [#]} Bb4 {[%emt 0:01:22]} (25... Rxb1 $142 $1 {[%mdl 512]} 26. cxd5 (26. Rxb1 Qxe2+) 26... Rxe1 27. Qxe1 {[#]} Nf4+ $1 {[%mdl 512]} 28. Nxf4 Qxe1 29. Nd3 Qe2+ 30. Kg1 Qxd3 31. dxe6 fxe6 32. Kf2 Bf4 33. Kg1 Qxf3 34. h3 Be3+ {[%mdl 64] Double Attack} 35. Kh2 Qf2+ 36. Kh1 Qg1#) 26. Qc7 {[%emt 0:02:01]} Rf8 {[%emt 0:00:08]} (26... Bxe1 $142 27. Qxb8+ {[#]} Kh7 $1 {[%mdl 512]}) 27. Rf1 {[%emt 0:02:49]} Qxe2+ {[%emt 0:00:14]} 28. Rf2 {[%emt 0:00:18]} Qe3 {[%emt 0:00:11]} 29. Qb6 {[%emt 0:01:13]} Qxg5+ {[%emt 0:00:14]} 0-1

[Event "18th IRI-chT Super League 2019"]
[Site "Tehran"]
[Date "2019.11.25"]
[Round "5.7"]
[White "Asgarizadeh, Ahmad"]
[Black "Mosadeghpour, Masoud"]
[Result "1/2-1/2"]
[ECO "B57"]
[WhiteElo "2449"]
[BlackElo "2500"]
[Annotator "ChessBase"]
[PlyCount "34"]
[EventDate "2019.11.23"]
[EventType "team-tourn"]
[EventCountry "IRI"]
[SourceTitle "playchess.com"]
[Source "ChessBase"]
[SourceQuality "1"]
[TimeControl "5400+30"]

1. e4 {[%emt 0:01:00]} c5 {[%emt 0:01:03]} 2. Nf3 {[%emt 0:00:04]} d6 {[%emt 0:00:09]} 3. d4 {[%emt 0:00:05]} cxd4 {[%emt 0:00:07]} 4. Nxd4 {[%emt 0:00:03]} Nf6 {[%emt 0:00:08]} 5. Nc3 {[%emt 0:00:06]} Nc6 {[%emt 0:00:45]} 6. Bc4 {[%emt 0:01:30]} e5 {[%emt 0:00:54]} 7. Nf3 {[%emt 0:00:03]} Be6 {[%emt 0:00:30]} 8. Qe2 {[%emt 0:00:05]} Rc8 {[%emt 0:01:27]} 9. Nd5 {[%emt 0:09:26]} Be7 {[%emt 0:02:54]} 10. O-O {[%emt 0:00:34]} O-O {[%emt 0:03:46]} 11. Rd1 {[%emt 0:01:08]} Bxd5 {[%emt 0:06:16]} 12. Bxd5 {[%emt 0:03:20]} Nxd5 {[%emt 0:00:34]} 13. Rxd5 {[%emt 0:00:04]} Nb4 {[%emt 0:00:48]} 14. Rd2 {[%emt 0:00:05]} Qc7 {[%emt 0:00:46]} 15. c3 {[%emt 0:02:19]} Na6 {[%emt 0:00:14]} 16. Ne1 {[%emt 0:04:10]} Qc6 {[%emt 0:02:33]} 17. Nc2 {[%emt 0:03:30]} Rfd8 {[%emt 0:05:40]} 1/2-1/2

[Event "18th IRI-chT Super League 2019"]
[Site "Tehran"]
[Date "2019.11.26"]
[Round "6.2"]
[White "Mosadeghpour, Masoud"]
[Black "Ghaem Maghami, Ehsan"]
[Result "1-0"]
[ECO "C95"]
[WhiteElo "2500"]
[BlackElo "2552"]
[Annotator "RC"]
[PlyCount "99"]
[EventDate "2019.11.23"]
[EventType "team-tourn"]
[EventCountry "IRI"]
[SourceTitle "playchess.com"]
[Source "ChessBase"]
[SourceQuality "1"]
[TimeControl "5400+30"]

1. e4 e5 2. Nf3 Nc6 3. Bb5 a6 4. Ba4 Nf6 5. O-O Be7 6. Re1 b5 7. Bb3 d6 8. c3 O-O 9. h3 Nb8 10. d4 Nbd7 11. c4 c6 12. Nc3 b4 13. Ne2 Nxe4 14. Qc2 f5 15. c5+ d5 16. Be3 Kh8 {[%emt 1:06:26]} 17. Nxe5 {[%emt 0:04:59]} Nxe5 {[%emt 0:00:23]} 18. dxe5 {[%emt 0:00:02]} f4 {[%emt 0:00:16]} 19. Nxf4 {[%emt 0:01:44]} Bf5 {[%emt 0:00:30]} 20. g4 {[%emt 0:10:41]} Bc8 {[%emt 0:03:22]} 21. Rad1 {[%emt 0:12:24]} Ng5 {[%emt 0:04:49]} 22. Kg2 {[%emt 0:01:43]} Qc7 {[%emt 0:03:47]} 23. Bc1 {[%emt 0:10:50]} a5 {[%emt 0:02:49]} 24. Ba4 {[%emt 0:08:33]} Rb8 {[%emt 0:04:01]} 25. f3 {[%emt 0:04:45]} Nxf3 {[%emt 0:03:11]} 26. Kxf3 {[%emt 0:00:56]} g5 {[%emt 0:00:02]} 27. e6 {[%emt 0:02:51]} Ba6 {[%emt 0:03:25]} 28. b3 {[%emt 0:07:41]} Kg8 {[%emt 0:01:32]} 29. Kg2 {[%emt 0:00:35]} gxf4 {[%emt 0:00:58]} 30. Kf3 {[%emt 0:00:15]} Rbe8 {[%emt 0:01:14]} 31. Bb2 {[%emt 0:01:12]} Bh4 {[%emt 0:04:36]} 32. Re5 {[%emt 0:06:34]} Bf6 {[%emt 0:01:21]} 33. Rde1 {[%emt 0:03:54]} Bb7 {[%emt 0:00:58]} 34. Rf5 {[%emt 0:07:36]} Qg7 {[%emt 0:00:49]} 35. h4 {[%emt 0:06:01]} Bxb2 {[%emt 0:01:59]} 36. Rg5 {[%emt 0:00:06]} Bc3 {[%emt 0:00:06]} 37. Re2 {[%emt 0:01:43]} Rf6 {[%emt 0:00:15]} 38. Rxg7+ {[%emt 0:02:13]} Kxg7 {[%emt 0:00:01]} 39. g5 {[%emt 0:00:47]} Rfxe6 {[%emt 0:00:20]} 40. Rxe6 {[%emt 0:00:14]} Rxe6 {[%emt 0:00:24]} 41. Qf5 {[%emt 0:00:32]} Re7 {[%emt 0:02:13]} 42. h5 {[%emt 0:00:31]} Re3+ {[%emt 0:00:41]} 43. Kxf4 {[%emt 0:01:25]} Bd2 {[%emt 0:00:30]} 44. Kg4 {[%emt 0:01:54]} Ba6 {[%emt 0:00:10]} 45. Qf6+ {[%emt 0:02:34]} Kg8 {[%emt 0:00:04]} 46. Qd8+ {[%emt 0:00:49]} Kf7 {[%emt 0:00:29]} 47. Qc7+ {[%emt 0:00:45]} Re7 {[%emt 0:00:12]} 48. g6+ {[%emt 0:00:50]} hxg6 {[%emt 0:00:02]} 49. hxg6+ {[%emt 0:00:06]} Kf6 {[%emt 0:00:04]} 50. Qd6+ {[%emt 0:00:09]} 1-0

[Event "18th IRI-chT Super League 2019"]
[Site "Tehran"]
[Date "2019.11.26"]
[Round "6.10"]
[White "Sebt Rasoul, Seyede Setare"]
[Black "Asgharzadeh, Mitra"]
[Result "1/2-1/2"]
[ECO "B76"]
[WhiteElo "2068"]
[BlackElo "2193"]
[Annotator "RC"]
[PlyCount "89"]
[EventDate "2019.11.23"]
[EventType "team-tourn"]
[EventCountry "IRI"]
[SourceTitle "playchess.com"]
[Source "ChessBase"]
[SourceQuality "1"]
[TimeControl "5400+30"]

1. e4 c5 2. Nf3 d6 3. d4 cxd4 4. Nxd4 Nf6 5. Nc3 g6 6. Be3 Bg7 7. f3 O-O 8. Qd2 Nc6 9. g4 Nxd4 10. Bxd4 Be6 11. h4 Qa5 12. h5 Rfc8 13. a3 a6 14. Rh2 b5 15. h6 Bh8 16. g5 Ne8 17. Bxh8 Kxh8 18. f4 {[%emt 0:07:56]} Rab8 {[%emt 0:39:02]} 19. Re2 {[%emt 0:02:46]} Bc4 {[%emt 0:11:35]} 20. Re3 {[%emt 0:01:49]} Bxf1 {[%emt 0:02:33]} 21. Kxf1 {[%emt 0:00:02]} b4 {[%emt 0:00:18]} 22. Nd5 {[%emt 0:08:14]} Qb5+ {[%emt 0:03:20]} 23. Kg1 {[%emt 0:14:03]} bxa3 {[%emt 0:04:55]} 24. bxa3 {[%emt 0:08:05]} Qd7 {[%emt 0:10:33]} 25. Kh1 {[%emt 0:13:54]} Qa4 {[%emt 0:05:00]} 26. Rc1 {[%emt 0:06:43]} e6 {[%emt 0:05:07]} 27. Nb4 {[%emt 0:08:51]} Rc4 {[%emt 0:01:48]} 28. Qd3 {[%emt 0:09:59]} Rbc8 {[%emt 0:01:05]} 29. Re2 {[%emt 0:00:51]} a5 {[%emt 0:01:04]} 30. Na2 {[%emt 0:00:02]} Rd4 {[%emt 0:03:01]} 31. Qe3 {[%emt 0:06:09]} Rcc4 {[%emt 0:00:56]} 32. Qf3 {[%emt 0:03:55]} Qc6 {[%emt 0:01:34]} 33. Rce1 {[%emt 0:04:12]} Rxc2 {[%emt 0:01:36]} 34. Rxc2 {[%emt 0:02:25]} Qxc2 {[%emt 0:00:02]} 35. Qc3 {[%emt 0:04:57]} Qxc3 {[%emt 0:00:42]} 36. Nxc3 {[%emt 0:00:01]} Kg8 {[%emt 0:02:47]} 37. Rb1 {[%emt 0:00:13]} Kf8 {[%emt 0:03:05]} 38. Rb8 {[%emt 0:00:05]} Rc4 {[%emt 0:06:35]} 39. Nb5 {[%emt 0:00:01]} Rc6 {[%emt 0:00:37]} 40. e5 {[%emt 0:01:46]} dxe5 {[%emt 0:00:27]} 41. fxe5 {[%emt 0:00:02]} Ke7 {[%emt 0:00:39]} 42. Rb7+ {[%emt 0:00:06]} Kf8 {[%emt 0:00:44]} 43. Rb8 {[%emt 0:00:04]} Ke7 {[%emt 0:00:20]} 44. Rb7+ {[%emt 0:00:01]} Kf8 {[%emt 0:00:14]} 45. Rb8 {[%emt 0:00:09]} 1/2-1/2